bitfinex/quotes_BTCUSD_20241211
["timestamp","ask_amount","ask_price","bid_price","bid_amount"]
[1733916180427,0.39100674,98421.0,98420.0,0.0007635]
[1733916180428,0.33064486,98421.0,98420.0,0.0007635]
[1733916180636,0.02067662,98415.0,98400.0,4.82014955]
[1733916180841,0.15,98413.0,98400.0,4.82014955]
[1733916181040,0.13330982,98412.0,98401.0,0.00464115]
[1733916181243,0.02798458,98411.0,98401.0,0.00464115]
[1733916181455,0.13330982,98410.0,98401.0,0.00464115]
[1733916181579,0.0082623,98409.0,98401.0,0.00464115]
[1733916181948,0.12504752,98408.0,98401.0,0.00464115]
[1733916182086,0.00758549,98407.0,98401.0,0.00464115]
[1733916182342,0.11799531,98406.0,98401.0,0.00464115]
[1733916182542,0.02480686,98405.0,98401.0,0.00464115]
[1733916182746,0.01267007,98404.0,98401.0,0.00464115]
[1733916183033,0.01267007,98403.0,98401.0,0.00464115]
[1733916183234,0.00758549,98402.0,98401.0,0.00464115]
[1733916183423,0.02798472,98402.0,98401.0,0.00464115]
[1733916183970,0.02798472,98402.0,98401.0,0.00564115]
[1733916185308,0.02798472,98402.0,98401.0,0.00464115]
[1733916185519,0.02798472,98402.0,98401.0,0.00664115]
[1733916188017,0.35891758,98402.0,98401.0,0.00664115]
[1733916188244,0.35898686,98402.0,98401.0,0.00664115]
[1733916188713,0.38572458,98402.0,98401.0,0.00664115]
[1733916188899,0.39777679,98402.0,98401.0,0.00664115]
[1733916189050,0.42944397,98402.0,98401.0,0.00664115]
[1733916189234,0.40270625,98402.0,98401.0,0.00664115]
[1733916189437,0.43144397,98402.0,98401.0,0.00464115]
[1733916190020,0.42944397,98402.0,98401.0,0.00464115]
[1733916190150,0.43844397,98402.0,98401.0,0.00564115]
[1733916190352,0.08901434,98401.0,98400.0,4.69390584]
[1733916190581,0.44990332,98401.0,98400.0,4.69390584]
[1733916191182,0.40406076,98401.0,98400.0,4.69390584]
[1733916191383,0.39897618,98401.0,98400.0,4.69390584]
[1733916191584,0.40088389,98401.0,98400.0,4.69390584]
[1733916191907,0.40724085,98401.0,98400.0,4.69390584]
[1733916192440,0.41424085,98401.0,98400.0,4.69490584]
[1733916192587,0.41624085,98401.0,98400.0,4.69490584]
[1733916192767,0.41624085,98401.0,98400.0,4.70053034]
[1733916192971,0.41624085,98401.0,98400.0,4.70070214]
[1733916193376,0.41306237,98401.0,98400.0,4.70070214]
[1733916193579,0.45757199,98401.0,98400.0,4.70070214]
[1733916195399,0.45757199,98401.0,98400.0,4.67781704]
[1733916198029,0.4575545,98401.0,98400.0,4.67781704]
[1733916199175,0.48055273,98401.0,98400.0,4.67781704]
[1733916200332,0.51015273,98401.0,98400.0,4.67781704]
[1733916200531,0.51015273,98401.0,98400.0,4.6460319]
[1733916201132,0.50506713,98401.0,98400.0,4.6460319]
[1733916201572,0.49606713,98401.0,98400.0,4.6450319]
[1733916201774,0.50706713,98401.0,98400.0,4.6450319]
[1733916202627,0.50406713,98401.0,98400.0,4.6450319]
[1733916202850,0.50706713,98401.0,98400.0,4.6450319]
[1733916204467,0.49906713,98401.0,98400.0,4.6450319]
[1733916205035,0.50706713,98401.0,98400.0,4.6450319]
[1733916205672,0.43295751,98401.0,98400.0,4.6450319]
[1733916205879,0.40995751,98401.0,98400.0,4.6450319]
[1733916206084,0.37829033,98401.0,98400.0,4.6450319]
[1733916206294,0.35761371,98401.0,98400.0,4.6450319]
[1733916206472,0.35461371,98401.0,98400.0,4.7250319]
[1733916206685,0.35761371,98401.0,98400.0,4.7250319]
[1733916206886,0.37829033,98401.0,98400.0,4.7250319]
[1733916207786,0.37029033,98401.0,98400.0,4.7250319]
[1733916207984,0.34961413,98401.0,98400.0,4.7250319]
[1733916208125,0.35761413,98401.0,98400.0,4.7250319]
[1733916208330,0.32787641,98401.0,98400.0,4.7250319]
[1733916208545,0.37529075,98401.0,98400.0,4.7250319]
[1733916208747,0.37829075,98401.0,98400.0,4.7250319]
[1733916209149,0.37529075,98401.0,98400.0,4.7250319]
[1733916209354,0.37829075,98401.0,98400.0,4.72821404]
[1733916209755,0.33087641,98401.0,98400.0,4.72821404]
[1733916210046,0.33087641,98401.0,98400.0,4.77791404]
[1733916210294,0.03395117,98401.0,98400.0,4.77791404]
[1733916210547,0.02178337,98401.0,98400.0,4.77791404]
[1733916211057,0.01378337,98401.0,98400.0,4.77791404]
[1733916211299,0.01978337,98401.0,98400.0,4.77791404]
[1733916211576,0.01678337,98401.0,98400.0,4.77791404]
[1733916211776,0.01278393,98401.0,98400.0,4.77791404]
[1733916212069,0.01878393,98401.0,98400.0,4.77791404]
[1733916212293,0.01078393,98401.0,98400.0,4.77791404]
[1733916212443,0.01278393,98401.0,98400.0,4.77791404]
[1733916212893,0.01078393,98401.0,98400.0,4.77791404]
[1733916214265,0.01378393,98401.0,98400.0,4.77791404]
[1733916214470,0.0076041,98401.0,98400.0,4.69791404]
[1733916214668,0.01078179,98401.0,98400.0,4.69791404]
[1733916215117,0.01078179,98401.0,98400.0,4.77901404]
[1733916215324,0.01378179,98401.0,98400.0,4.77901404]
[1733916217386,0.00617769,98401.0,98400.0,4.77901404]
[1733916219049,0.00317769,98401.0,98400.0,4.77901404]
[1733916220616,0.00417769,98401.0,98400.0,4.77901404]
[1733916221393,0.00735534,98401.0,98400.0,4.77901404]
[1733916221831,0.00417765,98401.0,98400.0,4.77901404]
[1733916223250,0.00760016,98409.0,98400.0,4.9007997]
[1733916223251,0.00317761,98408.0,98400.0,4.9007997]
[1733916223460,8.59e-05,98410.0,98408.0,0.1265]
[1733916223627,8.59e-05,98410.0,98409.0,0.20206228]
[1733916224005,8.59e-05,98410.0,98409.0,0.2585262]
[1733916224633,0.0050859,98410.0,98409.0,0.2585262]
[1733916225036,8.59e-05,98410.0,98409.0,0.2585262]
[1733916225254,0.0020859,98410.0,98409.0,0.2585262]
[1733916225679,8.59e-05,98410.0,98409.0,0.2585262]
[1733916226030,8.59e-05,98410.0,98409.0,0.27043905]
[1733916226236,0.0010859,98410.0,98409.0,0.27043905]
[1733916226815,0.0010859,98410.0,98409.0,0.2615262]
[1733916227284,0.00317694,98429.0,98416.0,0.12932338]
[1733916227422,0.00317694,98429.0,98420.0,0.25258566]
[1733916227631,8.59e-05,98430.0,98420.0,0.37808566]
[1733916227834,8.59e-05,98430.0,98420.0,0.38680804]
[1733916228042,8.59e-05,98430.0,98428.0,0.12932338]
[1733916228248,8.59e-05,98430.0,98429.0,0.37808566]
[1733916228613,8.59e-05,98430.0,98429.0,0.38679314]
[1733916229572,0.0020859,98430.0,98429.0,0.38679314]
[1733916230363,0.0070859,98430.0,98429.0,0.38779314]
[1733916230854,8.59e-05,98430.0,98429.0,0.38679314]
[1733916231264,8.59e-05,98430.0,98429.0,0.39279314]
[1733916234638,8.59e-05,98430.0,98429.0,0.38979314]
[1733916234868,8.59e-05,98430.0,98429.0,0.39079314]
[1733916235662,0.0010859,98430.0,98429.0,0.39579314]
[1733916236630,0.00326218,98460.0,98449.0,0.25016228]
[1733916237048,0.00326218,98460.0,98449.0,0.25915318]
[1733916237255,0.00326218,98460.0,98449.0,0.38847656]
[1733916237698,8.59e-05,98460.0,98449.0,0.38847656]
[1733916237898,0.0020859,98450.0,98449.0,0.38847656]
[1733916238664,8.59e-05,98450.0,98449.0,0.38847656]
[1733916238881,8.59e-05,98450.0,98449.0,0.38947656]
[1733916239287,8.59e-05,98450.0,98449.0,0.38847656]
[1733916239694,8.59e-05,98450.0,98449.0,0.39147656]
[1733916241065,0.0010859,98450.0,98449.0,0.39747656]
[1733916242324,8.59e-05,98460.0,98459.0,0.25258566]
[1733916242545,8.59e-05,98460.0,98459.0,0.4843109]
[1733916242800,8.59e-05,98460.0,98459.0,0.4932092]
[1733916243010,8.59e-05,98460.0,98459.0,0.38788396]
[1733916243647,0.00019766,98460.0,98459.0,0.38788396]
[1733916244270,0.00019766,98460.0,98459.0,0.39088396]
[1733916244514,0.00019766,98460.0,98459.0,0.39288396]
[1733916246086,0.00019766,98460.0,98459.0,0.40489477]
[1733916250917,0.00019766,98460.0,98459.0,0.51022001]
[1733916252751,0.00019766,98460.0,98459.0,0.40489477]
[1733916256102,0.00019766,98460.0,98459.0,0.40289477]
[1733916256655,0.00019766,98460.0,98459.0,0.39989477]
[1733916256856,0.00019766,98460.0,98459.0,0.40289477]
[1733916257055,0.00019766,98460.0,98459.0,0.40689477]
[1733916266562,0.00019766,98460.0,98459.0,0.40411919]
[1733916266778,0.00337279,98460.0,98459.0,0.40411919]
[1733916269999,0.00019766,98460.0,98459.0,0.40411919]
[1733916270143,0.00337278,98460.0,98459.0,0.40411919]
[1733916277169,0.00019766,98460.0,98459.0,0.40411919]
[1733916277375,0.00337278,98460.0,98459.0,0.40411919]
[1733916278224,0.00019766,98460.0,98459.0,0.40411919]
[1733916280027,0.00019766,98460.0,98459.0,0.40397647]
[1733916282278,0.00019766,98460.0,98459.0,0.73814094]
[1733916282480,0.01099348,98460.0,98459.0,0.01312272]
[1733916282686,0.00845368,98460.0,98459.0,0.01648053]
[1733916282893,0.13359375,98460.0,98459.0,0.01648053]
[1733916283102,0.13359375,98460.0,98459.0,0.007]
[1733916283499,0.13359375,98460.0,98459.0,0.004]
[1733916283964,0.13359375,98460.0,98450.0,0.12329116]
[1733916284118,0.14138703,98459.0,98450.0,0.12329116]
[1733916284298,0.02807085,98458.0,98451.0,0.00815849]
[1733916284505,0.00019766,98460.0,98451.0,0.00815849]
[1733916284506,0.14265744,98457.0,98451.0,0.00815849]
[1733916284706,0.03442289,98456.0,98451.0,0.00815849]
[1733916284911,0.13974813,98455.0,98450.0,0.12329116]
[1733916285113,0.03442289,98454.0,98450.0,0.12329116]
[1733916285315,0.02934213,98453.0,98450.0,0.12329116]
[1733916285670,0.02934213,98452.0,98450.0,0.0001716]
[1733916285877,0.02934213,98451.0,98450.0,0.0001716]
[1733916286082,0.02221323,98451.0,98450.0,0.0001716]
[1733916286513,0.12753847,98451.0,98450.0,0.0011716]
[1733916286724,0.13970411,98451.0,98450.0,0.0011716]
[1733916287971,0.14170411,98451.0,98450.0,0.0001716]
[1733916288359,0.12753847,98451.0,98450.0,0.0021716]
[1733916288564,0.12953847,98451.0,98450.0,0.0021716]
[1733916289483,0.1295392,98451.0,98450.0,0.0001716]
[1733916289688,0.12444649,98451.0,98450.0,0.0001716]
[1733916290270,0.11809412,98451.0,98450.0,0.0001716]
[1733916290904,0.12244649,98451.0,98450.0,0.0001716]
[1733916291126,0.11609412,98451.0,98450.0,0.0001716]
[1733916291320,0.12317601,98451.0,98450.0,0.0001716]
[1733916291836,0.01785077,98451.0,98450.0,0.0001716]
[1733916292071,0.01785077,98451.0,98450.0,0.00833174]
[1733916292269,0.01025807,98451.0,98450.0,0.00833174]
[1733916292694,0.01025766,98451.0,98450.0,0.00833174]
[1733916294196,0.00825766,98451.0,98450.0,0.00833174]
[1733916294822,0.01025766,98451.0,98450.0,0.00833174]
[1733916295794,0.002,98451.0,98450.0,0.00833174]
[1733916296008,0.00708159,98451.0,98450.0,0.00833174]
[1733916296216,0.01025758,98451.0,98450.0,0.00833174]
[1733916297216,0.01025758,98451.0,98450.0,0.13765512]
[1733916297391,0.00517599,98451.0,98450.0,0.33777468]
[1733916297619,0.002,98451.0,98450.0,0.33777468]
[1733916298176,0.00019766,98460.0,98450.0,0.33777468]
[1733916298375,0.00317554,98459.0,98450.0,0.33777468]
[1733916298636,0.00019766,98460.0,98450.0,0.33777468]
[1733916298637,0.002,98451.0,98450.0,0.33777468]
[1733916299022,0.00019766,98460.0,98450.0,0.33977468]
[1733916299223,0.00019766,98460.0,98459.0,0.12311956]
[1733916299403,0.0033732,98460.0,98459.0,0.12311956]
[1733916299599,0.0033732,98460.0,98459.0,0.13128709]
[1733916300558,0.0033732,98460.0,98459.0,0.00816753]
[1733916300762,0.0033732,98460.0,98459.0,0.13128709]
[1733916301007,0.0033732,98460.0,98459.0,0.12311956]
[1733916301214,0.0033732,98460.0,98459.0,0.13128709]
[1733916301637,0.0043732,98460.0,98459.0,0.13128709]
[1733916301751,0.0043732,98460.0,98459.0,0.13328709]
[1733916301959,0.0033732,98460.0,98459.0,0.13328709]
[1733916302315,0.0033732,98460.0,98459.0,0.13528709]
[1733916304551,0.0033732,98460.0,98459.0,0.49753571]
[1733916304742,0.00019766,98460.0,98459.0,0.49753571]
[1733916305600,0.00019766,98460.0,98459.0,0.49353571]
[1733916305905,0.00019766,98460.0,98459.0,0.49653571]
[1733916306073,0.00019766,98460.0,98459.0,0.39321047]
[1733916306272,0.00019766,98460.0,98459.0,0.39021047]
[1733916306479,0.00119766,98460.0,98459.0,0.39521047]
[1733916307817,0.00019766,98460.0,98459.0,0.38821047]
[1733916308228,0.00219766,98460.0,98459.0,0.40221047]
[1733916308728,0.00119766,98460.0,98459.0,0.39721047]
[1733916308933,0.00119766,98460.0,98459.0,0.39321047]
[1733916309791,0.00119766,98460.0,98459.0,0.41326407]
[1733916310546,0.00219766,98460.0,98459.0,0.42226407]
[1733916311913,0.00119766,98460.0,98459.0,0.41326407]
[1733916312090,0.00119766,98460.0,98459.0,0.42026407]
[1733916312437,0.00219766,98460.0,98459.0,0.42026407]
[1733916314036,0.00219766,98460.0,98459.0,0.52558931]
[1733916327145,0.00019766,98460.0,98459.0,0.51358931]
[1733916327574,0.00119766,98460.0,98459.0,0.51858931]
[1733916327983,0.00019766,98460.0,98459.0,0.51358931]
[1733916328395,0.00219766,98460.0,98459.0,0.52558931]
[1733916328812,0.00019766,98460.0,98459.0,0.51358931]
[1733916329023,0.00119766,98460.0,98459.0,0.52058931]
[1733916329449,0.00019766,98460.0,98459.0,0.51358931]
[1733916330256,0.00219766,98460.0,98459.0,0.52558931]
[1733916330638,0.00119766,98460.0,98459.0,0.52058931]
[1733916331060,0.00219766,98460.0,98459.0,0.52558931]
[1733916331661,0.00119766,98460.0,98459.0,0.51858931]
[1733916332034,0.00219766,98460.0,98459.0,0.52558931]
[1733916335663,0.00219766,98460.0,98459.0,0.42026407]
[1733916335874,0.0053727,98460.0,98459.0,0.39787082]
[1733916336082,0.0053727,98460.0,98459.0,0.34957082]
[1733916336296,0.01045317,98460.0,98459.0,0.34957082]
[1733916337173,0.01045317,98460.0,98459.0,0.14094744]
[1733916337374,0.01045317,98460.0,98459.0,0.27027082]
[1733916337694,0.01045317,98460.0,98459.0,0.14094744]
[1733916337896,0.01045317,98460.0,98459.0,0.27027082]
[1733916338044,0.00854803,98460.0,98459.0,0.27027082]
[1733916338225,0.00854803,98460.0,98459.0,0.14094744]
[1733916338226,0.01362856,98460.0,98459.0,0.14094744]
[1733916338427,0.01362856,98460.0,98459.0,0.27027082]
[1733916339516,0.01045352,98460.0,98459.0,0.27027082]
[1733916341362,0.00537299,98460.0,98459.0,0.27027082]
[1733916344630,0.00537299,98460.0,98459.0,0.14094744]
[1733916345222,0.01045374,98460.0,98459.0,0.14094744]
[1733916345439,0.00945374,98460.0,98459.0,0.13394744]
[1733916345851,0.01045374,98460.0,98459.0,0.13994744]
[1733916346018,0.01045374,98460.0,98459.0,0.13394744]
[1733916346225,0.00945374,98460.0,98459.0,0.12894744]
[1733916346430,0.00945374,98460.0,98459.0,0.13294744]
[1733916346830,0.01045374,98460.0,98459.0,0.13894744]
[1733916347033,0.01045374,98460.0,98459.0,0.13494744]
[1733916347435,0.01045374,98460.0,98459.0,0.13894744]
[1733916347812,0.01045374,98460.0,98459.0,0.13494744]
[1733916348239,0.00845374,98460.0,98459.0,0.13194744]
[1733916348400,0.00945374,98460.0,98459.0,0.13694744]
[1733916348918,0.00845374,98460.0,98459.0,0.13194744]
[1733916349143,0.00945374,98460.0,98459.0,0.13694744]
[1733916354025,0.00119766,98460.0,98459.0,0.13694744]
[1733916354281,0.00945399,98460.0,98459.0,0.13694744]
[1733916354916,0.00437317,98460.0,98459.0,0.34947082]
[1733916356160,0.00437317,98460.0,98459.0,0.34647082]
[1733916356373,0.00337317,98460.0,98459.0,0.34147082]
[1733916356605,0.00337317,98460.0,98459.0,0.34547082]
[1733916357371,0.00019766,98460.0,98459.0,0.34547082]
[1733916357571,0.00337304,98460.0,98459.0,0.34547082]
[1733916357893,0.00437304,98460.0,98459.0,0.35147082]
[1733916360640,0.00754842,98460.0,98459.0,0.35147082]
[1733916361191,0.00437304,98460.0,98459.0,0.35147082]
[1733916362142,0.00127304,98460.0,98459.0,0.35147082]
[1733916362298,0.00635366,98460.0,98459.0,0.35147082]
[1733916362699,0.00127304,98460.0,98459.0,0.35147082]
[1733916363248,0.00635366,98460.0,98459.0,0.35147082]
[1733916365748,0.00635366,98460.0,98459.0,0.50209606]
[1733916365960,0.26210348,98495.0,98459.0,0.50209606]
[1733916365961,0.09128139,98493.0,98479.0,0.25244294]
[1733916366168,0.22828928,98500.0,98499.0,0.25244294]
[1733916366169,8.58e-05,98500.0,98499.0,0.25244294]
[1733916366377,8.58e-05,98500.0,98499.0,0.63546818]
[1733916366576,8.58e-05,98500.0,98499.0,0.66460445]
[1733916366577,0.00063732,98500.0,98499.0,0.66460445]
[1733916366815,0.015,98512.0,98509.0,0.40244294]
[1733916367027,0.015,98512.0,98509.0,0.92185218]
[1733916367233,0.015,98512.0,98509.0,1.19860547]
[1733916367427,0.00019789,98510.0,98509.0,1.19860547]
[1733916367638,0.00019789,98510.0,98509.0,0.92795544]
[1733916368146,0.00119789,98510.0,98509.0,1.06716191]
[1733916368345,0.00119789,98510.0,98509.0,1.13290911]
[1733916368553,0.00119789,98510.0,98509.0,0.75454265]
[1733916368777,0.00119789,98510.0,98509.0,0.70952169]
[1733916368999,0.00119789,98510.0,98509.0,0.72055659]
[1733916369236,0.00219789,98510.0,98509.0,0.72955659]
[1733916369469,0.00119789,98510.0,98509.0,0.72555659]
[1733916369710,0.00219789,98510.0,98509.0,0.64149395]
[1733916370137,0.00119789,98510.0,98509.0,0.63249395]
[1733916370344,0.00019789,98510.0,98509.0,0.62649395]
[1733916370542,0.00119789,98510.0,98509.0,0.64049395]
[1733916371159,0.00119789,98510.0,98509.0,0.63549395]
[1733916371369,0.00219789,98510.0,98509.0,0.64149395]
[1733916372228,0.00119789,98510.0,98509.0,0.63249395]
[1733916372767,0.00119789,98510.0,98509.0,0.63549395]
[1733916372993,0.00219789,98510.0,98509.0,0.64149395]
[1733916373201,0.00119789,98510.0,98509.0,0.63249395]
[1733916373408,0.00119789,98510.0,98509.0,0.64149395]
[1733916373409,0.00219789,98510.0,98509.0,0.64149395]
[1733916373619,0.00119789,98510.0,98509.0,0.63549395]
[1733916373826,0.00219789,98510.0,98509.0,0.64149395]
[1733916375067,0.00219789,98510.0,98509.0,0.38616871]
[1733916375610,8.57e-05,98550.0,98509.0,0.38616871]
[1733916375611,0.00754599,98554.0,98527.0,0.15]
[1733916375932,0.023,98577.0,98527.0,0.15]
[1733916375933,0.15,98552.0,98529.0,0.5365]
[1733916376143,0.15,98550.0,98529.0,0.5365]
[1733916376355,0.15,98548.0,98530.0,0.00631817]
[1733916376553,0.15,98546.0,98530.0,0.00631817]
[1733916376787,0.10532524,98545.0,98530.0,0.00631817]
[1733916377520,0.15,98544.0,98530.0,0.00631817]
[1733916377722,0.023,98577.0,98530.0,0.00631817]
[1733916377723,0.15,98542.0,98530.0,0.00631817]
[1733916377970,0.15,98540.0,98530.0,0.00631817]
[1733916378214,0.15,98538.0,98530.0,0.00631817]
[1733916378415,0.10532524,98537.0,98530.0,0.00631817]
[1733916379542,0.10532524,98537.0,98530.0,0.00931817]
[1733916379776,0.10532524,98537.0,98530.0,0.00631817]
[1733916380113,0.10532524,98537.0,98531.0,0.5365]
[1733916380472,0.10532524,98537.0,98532.0,0.00627311]
[1733916380678,0.10632524,98537.0,98532.0,0.00627311]
[1733916381907,0.10532524,98537.0,98532.0,0.00627311]
[1733916382542,0.17661369,98536.0,98532.0,0.00627311]
[1733916382747,0.15,98534.0,98532.0,0.00627311]
[1733916382964,0.15,98534.0,98524.0,0.01127302]
[1733916382965,0.10532524,98533.0,98524.0,0.01127302]
[1733916383173,0.15,98532.0,98524.0,0.01127302]
[1733916383378,0.10532524,98531.0,98520.0,0.02068487]
[1733916386020,0.10532524,98531.0,98513.0,0.5365]
[1733916386228,0.10532524,98531.0,98520.0,0.001]
[1733916386637,0.10532524,98531.0,98521.0,0.00630804]
[1733916389196,0.10532524,98531.0,98522.0,0.5365]
[1733916389635,0.10532524,98531.0,98523.0,0.00646913]
[1733916391695,0.11289577,98531.0,98523.0,0.00646913]
[1733916392317,0.11289577,98531.0,98524.0,0.5365]
[1733916392628,0.11289577,98531.0,98525.0,0.00647554]
[1733916393931,0.11289577,98531.0,98525.0,0.00947554]
[1733916394147,0.11289577,98531.0,98525.0,0.00647554]
[1733916394319,0.00757053,98530.0,98525.0,0.01247554]
[1733916394520,0.11289577,98529.0,98525.0,0.01247554]
[1733916394728,0.00757053,98528.0,98525.0,0.01247554]
[1733916394889,0.00757053,98527.0,98525.0,0.01247554]
[1733916395092,0.00757053,98527.0,98526.0,0.5365]
[1733916395504,0.00757053,98527.0,98526.0,0.54297388]
[1733916395720,0.11289577,98527.0,98526.0,0.00647388]
[1733916395927,0.27418535,98527.0,98525.0,0.008]
[1733916396133,0.11289577,98526.0,98525.0,0.008]
[1733916396345,0.10532524,98526.0,98525.0,0.003]
[1733916396541,0.1129212,98526.0,98520.0,0.0001714]
[1733916397038,0.15759596,98525.0,98521.0,0.00647751]
[1733916397178,0.15,98523.0,98521.0,0.00647751]
[1733916397380,0.2629212,98522.0,98521.0,0.00647751]
[1733916398329,0.2903409,98522.0,98521.0,0.00647751]
[1733916398749,0.3133409,98522.0,98521.0,0.00647751]
[1733916398950,0.2859212,98522.0,98521.0,0.00647751]
[1733916399155,0.173,98521.0,98520.0,0.0001714]
[1733916399306,0.2859212,98521.0,98520.0,0.0001714]
[1733916399743,0.28591992,98521.0,98520.0,0.0001714]
[1733916400747,0.28791992,98521.0,98520.0,0.0001714]
[1733916400940,0.31877175,98521.0,98520.0,0.0001714]
[1733916401796,0.32194673,98521.0,98520.0,0.0001714]
[1733916402383,0.2890949,98521.0,98520.0,0.0001714]
[1733916402592,0.2670949,98521.0,98520.0,0.0001714]
[1733916402781,0.2690949,98521.0,98520.0,0.0001714]
[1733916402982,0.26591992,98521.0,98520.0,0.0001714]
[1733916403237,0.26491992,98521.0,98520.0,0.0001714]
[1733916403375,0.29447174,98521.0,98520.0,0.0001714]
[1733916403586,0.29247174,98521.0,98520.0,0.0001714]
[1733916403791,0.29447174,98521.0,98520.0,0.0001714]
[1733916404013,0.29347174,98521.0,98520.0,0.0001714]
[1733916404214,0.29247174,98521.0,98520.0,0.0001714]
[1733916404502,0.26391992,98521.0,98520.0,0.0001714]
[1733916404771,0.26709465,98521.0,98520.0,0.0001714]
[1733916405760,0.26809465,98521.0,98520.0,0.0001714]
[1733916406030,0.26709465,98521.0,98520.0,0.0001714]
[1733916406227,0.26809465,98521.0,98520.0,0.0001714]
[1733916406618,0.26709078,98521.0,98520.0,0.0001714]
[1733916406979,0.26609078,98521.0,98520.0,0.0001714]
[1733916407207,0.26709078,98521.0,98520.0,0.0001714]
[1733916407408,0.01176554,98521.0,98520.0,0.0001714]
[1733916407762,0.00417473,98521.0,98520.0,0.0001714]
[1733916409186,0.00317473,98521.0,98520.0,0.0001714]
[1733916409594,0.001,98521.0,98520.0,0.0001714]
[1733916409756,0.00317395,98521.0,98520.0,0.0001714]
[1733916409967,0.00317395,98521.0,98520.0,0.0041714]
[1733916410169,0.00317395,98521.0,98520.0,0.01084101]
[1733916410649,0.00317395,98521.0,98520.0,0.01284101]
[1733916412279,0.00317395,98521.0,98520.0,0.00884101]
[1733916412679,0.00317395,98521.0,98520.0,0.01284101]
[1733916413094,0.10849919,98521.0,98520.0,0.54534101]
[1733916413305,0.10849919,98521.0,98520.0,0.54934101]
[1733916413511,0.11609238,98521.0,98520.0,0.54734101]
[1733916413709,0.11609238,98521.0,98520.0,0.54534101]
[1733916413918,0.11609238,98521.0,98520.0,0.54934101]
[1733916414326,0.11609238,98521.0,98520.0,0.54734101]
[1733916414531,0.11609238,98521.0,98520.0,0.54934101]
[1733916414739,0.11609238,98521.0,98520.0,0.54534101]
[1733916416258,0.11609279,98521.0,98520.0,0.01284101]
[1733916416489,0.10532524,98521.0,98520.0,0.01284101]
[1733916416691,0.10849962,98521.0,98520.0,0.0061714]
[1733916417113,0.11609359,98521.0,98520.0,0.0061714]
[1733916421708,0.11609335,98521.0,98520.0,0.0873714]
[1733916422212,0.11609335,98521.0,98520.0,0.09402209]
[1733916425340,0.11609686,98521.0,98520.0,0.63052209]
[1733916427215,0.11609686,98521.0,98520.0,0.54932209]
[1733916428175,0.11609686,98521.0,98520.0,0.01282209]
[1733916428382,0.11609686,98521.0,98520.0,0.0061714]
[1733916431639,0.11609718,98521.0,98520.0,0.0061714]
[1733916431846,0.10849961,98521.0,98520.0,0.0061714]
[1733916435011,0.10849961,98521.0,98520.0,0.0864714]
[1733916435199,0.10532524,98521.0,98520.0,0.0864714]
[1733916435403,0.1084993,98521.0,98520.0,0.0864714]
[1733916436169,0.1135778,98521.0,98520.0,0.0864714]
[1733916438172,0.11357785,98521.0,98520.0,0.0864714]
[1733916444923,0.1135778,98521.0,98520.0,0.0864714]
[1733916446291,0.00825256,98521.0,98520.0,0.1333714]
[1733916446526,0.00825256,98521.0,98520.0,0.6698714]
[1733916446749,0.00317406,98521.0,98520.0,0.76711758]
[1733916446951,0.00317406,98521.0,98520.0,0.76711883]
[1733916447152,0.00317406,98521.0,98520.0,0.76511883]
[1733916447562,0.00317406,98521.0,98520.0,0.67266947]
[1733916447933,0.00634791,98521.0,98520.0,0.67566947]
[1733916448131,0.00634791,98521.0,98520.0,0.76614625]
[1733916448539,0.00634791,98521.0,98520.0,0.67566947]
[1733916449369,0.00317385,98521.0,98520.0,0.67566947]
[1733916449665,0.00317385,98521.0,98520.0,0.67366947]
[1733916450024,0.00317385,98521.0,98520.0,0.67466947]
[1733916450526,0.00825201,98521.0,98520.0,0.67466947]
[1733916450736,0.00825201,98521.0,98520.0,0.67166947]
[1733916450994,0.00825201,98521.0,98520.0,0.67266947]
[1733916451701,0.00825201,98521.0,98520.0,0.67666947]
[1733916451906,0.00317385,98521.0,98520.0,0.67666947]
[1733916452104,0.10849909,98521.0,98520.0,0.62976947]
[1733916452363,0.10849909,98521.0,98520.0,0.09326947]
[1733916452773,0.11357725,98521.0,98520.0,0.01296947]
[1733916453141,0.11357725,98521.0,98520.0,0.0061714]
[1733916453738,0.11357725,98521.0,98520.0,0.0041714]
[1733916453960,0.11357725,98521.0,98520.0,0.0011714]
[1733916454363,0.11357725,98521.0,98520.0,0.0031714]
[1733916454587,0.11357725,98521.0,98520.0,0.0001714]
[1733916455875,0.11357725,98521.0,98520.0,0.0021714]
[1733916456007,0.28657725,98521.0,98520.0,0.0021714]
[1733916456608,0.28657725,98521.0,98520.0,0.0031714]
[1733916456955,0.28657725,98521.0,98520.0,0.0021714]
[1733916457172,0.28657725,98521.0,98520.0,0.0001714]
[1733916457598,0.28657725,98521.0,98520.0,0.0021714]
[1733916457744,0.27932524,98521.0,98520.0,0.0001714]
[1733916457928,0.2895789,98521.0,98520.0,0.0001714]
[1733916458390,0.2885789,98521.0,98520.0,0.0001714]
[1733916458860,0.2865789,98521.0,98520.0,0.0001714]
[1733916459063,0.2885789,98521.0,98520.0,0.0001714]
[1733916459665,0.28424557,98521.0,98520.0,0.0001714]
[1733916460290,0.28324557,98521.0,98520.0,0.0001714]
[1733916460680,0.27816639,98521.0,98520.0,0.0001714]
[1733916460864,0.28124558,98521.0,98520.0,0.0001714]
[1733916461244,0.28224558,98521.0,98520.0,0.0001714]
[1733916463790,0.31357478,98521.0,98520.0,0.0001714]
[1733916464617,0.28224558,98521.0,98520.0,0.0001714]
[1733916465010,0.28124558,98521.0,98520.0,0.0001714]
[1733916465426,0.28324558,98521.0,98520.0,0.0001714]
[1733916465580,0.28124558,98521.0,98520.0,0.0001714]
[1733916465776,0.28324558,98521.0,98520.0,0.0001714]
[1733916466185,0.31767478,98521.0,98520.0,0.0001714]
[1733916466596,0.28624558,98521.0,98520.0,0.0001714]
[1733916466812,0.28324558,98521.0,98520.0,0.0001714]
[1733916467013,0.28624603,98521.0,98520.0,0.0001714]
[1733916468960,0.27799191,98521.0,98520.0,0.0001714]
[1733916477055,0.95076791,98521.0,98520.0,0.0001714]
[1733916477270,1.65212121,98521.0,98511.0,0.0004]
[1733916477446,0.27832524,98512.0,98511.0,0.0004]
[1733916478925,0.28132524,98512.0,98511.0,0.0014]
[1733916479526,0.28632524,98512.0,98511.0,0.0014]
[1733916480710,0.28132524,98512.0,98511.0,0.0014]
[1733916480909,0.31445776,98512.0,98511.0,0.0014]
[1733916481165,0.31145776,98512.0,98511.0,0.0004]
[1733916481550,0.33158946,98512.0,98511.0,0.0014]
[1733916490491,0.33158946,98512.0,98488.0,0.0808]
[1733916490492,0.173,98511.0,98488.0,0.0808]
[1733916490695,0.27832524,98492.0,98488.0,0.0808]
[1733916490906,0.30615776,98492.0,98488.0,0.0808]
[1733916491484,0.27832524,98492.0,98488.0,0.0808]
[1733916491688,0.27832524,98492.0,98491.0,0.0014]
[1733916491888,0.27832524,98492.0,98491.0,0.0004]
[1733916492295,0.28132524,98492.0,98491.0,0.0004]
[1733916492816,0.29231486,98492.0,98491.0,0.0004]
[1733916493198,0.28931486,98492.0,98491.0,0.0004]
[1733916493538,0.31954635,98492.0,98491.0,0.0004]
[1733916494071,0.31854635,98492.0,98491.0,0.0004]
[1733916495104,0.32054635,98492.0,98491.0,0.0004]
[1733916495698,0.34100378,98492.0,98491.0,0.0004]